[Event "Titled Tuesday Blitz April 4 Early 2023"]
[White "Skliarov, Viktor"]
[Black "Moroni, Luca Jr"]
[WhiteFideId "14106736"]
[BlackFideId "865834"]
[WhiteElo "2317"]
[BlackElo "2569"]
[Result "0-1"]
[Round "05"]
[TimeControl "180+2"]
[Date "2023.04.04"]
[WhiteClock "0:00:05"]
[BlackClock "0:00:21"]

1. e4 {[%clk 0:02:53]}  g6 {[%clk 0:03:00]} 2. d4 {[%clk 0:02:51]}  Bg7 {[%clk 0:03:01]} 3. Nc3 {[%clk 0:02:51]}  a6 {[%clk 0:03:00]} 4. Be3 {[%clk 0:02:50]}  b5 {[%clk 0:02:58]} 5. f3 {[%clk 0:02:50]}  Bb7 {[%clk 0:02:57]} 6. Qd2 {[%clk 0:02:50]}  Nf6 {[%clk 0:02:57]} 7. g4 {[%clk 0:02:49]}  d6 {[%clk 0:02:53]} 8. h4 {[%clk 0:02:48]}  h5 {[%clk 0:02:53]} 9. g5 {[%clk 0:02:48]}  Nfd7 {[%clk 0:02:53]} 10. O-O-O {[%clk 0:02:46]}  Nb6 {[%clk 0:02:47]} 11. d5 {[%clk 0:02:15]}  N8d7 {[%clk 0:02:46]} 12. Bd4 {[%clk 0:02:11]}  O-O {[%clk 0:02:42]} 13. Bxg7 {[%clk 0:02:03]}  Kxg7 {[%clk 0:02:43]} 14. Qd4+ {[%clk 0:02:02]}  Kg8 {[%clk 0:02:43]} 15. f4 {[%clk 0:02:02]}  c6 {[%clk 0:02:39]} 16. dxc6 {[%clk 0:01:52]}  Bxc6 {[%clk 0:02:39]} 17. Nf3 {[%clk 0:01:53]}  Qc7 {[%clk 0:02:35]} 18. Rg1 {[%clk 0:01:22]}  Bb7 {[%clk 0:02:29]} 19. f5 {[%clk 0:01:12]}  Qc5 {[%clk 0:02:21]} 20. a3 {[%clk 0:00:59]}  Rac8 {[%clk 0:02:12]} 21. f6 {[%clk 0:00:57]}  exf6 {[%clk 0:02:05]} 22. gxf6 {[%clk 0:00:53]}  Qxd4 {[%clk 0:01:44]} 23. Nxd4 {[%clk 0:00:38]}  Rxc3 {[%clk 0:01:34]} 24. bxc3 {[%clk 0:00:35]}  Bxe4 {[%clk 0:01:34]} 25. Bg2 {[%clk 0:00:29]}  Bxg2 {[%clk 0:01:21]} 26. Rxg2 {[%clk 0:00:29]}  Nxf6 {[%clk 0:01:21]} 27. Nf5 {[%clk 0:00:26]}  Nc4 {[%clk 0:01:11]} 28. Nxd6 {[%clk 0:00:09]}  Ne3 {[%clk 0:01:10]} 29. Rf2 {[%clk 0:00:09]}  Nxd1 {[%clk 0:01:02]} 30. Rxf6 {[%clk 0:00:08]}  Nxc3 {[%clk 0:01:02]} 31. Nb7 {[%clk 0:00:06]}  Rb8 {[%clk 0:00:51]} 32. Nc5 {[%clk 0:00:05]}  a5 {[%clk 0:00:50]} 33. Ra6 {[%clk 0:00:05]}  a4 {[%clk 0:00:49]} 34. Rc6 {[%clk 0:00:04]}  Ne2+ {[%clk 0:00:45]} 35. Kb2 {[%clk 0:00:04]}  Nd4 {[%clk 0:00:46]} 36. Rc7 {[%clk 0:00:03]}  Nf5 {[%clk 0:00:42]} 37. Nd3 {[%clk 0:00:03]}  Re8 {[%clk 0:00:38]} 38. Rb7 {[%clk 0:00:02]}  Nxh4 {[%clk 0:00:36]} 39. Rxb5 {[%clk 0:00:02]}  Nf5 {[%clk 0:00:28]} 40. Rb4 {[%clk 0:00:02]}  h4 {[%clk 0:00:25]} 41. Rxa4 {[%clk 0:00:03]}  h3 {[%clk 0:00:25]} 42. Rf4 {[%clk 0:00:03]}  h2 {[%clk 0:00:22]} 43. Nf2 {[%clk 0:00:03]}  Re1 {[%clk 0:00:22]} 44. a4 {[%clk 0:00:03]}  Rf1 {[%clk 0:00:21]} 45. a5 {[%clk 0:00:04]}  Rxf2 {[%clk 0:00:21]} 46. Rxf2 {[%clk 0:00:05]}  h1=Q {[%clk 0:00:21]} 0-1


[Site "https://www.chess.com"]

[Event "Titled Tuesday Blitz April 4 Early 2023"]
[White "Antal, Gergely"]
[Black "Kovalev, Vladislav"]
[WhiteFideId "717312"]
[BlackFideId "13504398"]
[WhiteElo "2471"]
[BlackElo "2555"]
[Result "1-0"]
[Round "05"]
[TimeControl "180+2"]
[Date "2023.04.04"]
[WhiteClock "0:00:19"]
[BlackClock "0:00:04"]

1. e4 {[%clk 0:03:00]}  e5 {[%clk 0:02:59]} 2. Nc3 {[%clk 0:03:00]}  Nc6 {[%clk 0:02:54]} 3. g3 {[%clk 0:03:00]}  Bc5 {[%clk 0:02:53]} 4. Bg2 {[%clk 0:03:00]}  d6 {[%clk 0:02:53]} 5. d3 {[%clk 0:03:00]}  a6 {[%clk 0:02:51]} 6. Nge2 {[%clk 0:03:00]}  Nge7 {[%clk 0:02:50]} 7. O-O {[%clk 0:02:58]}  h5 {[%clk 0:02:50]} 8. h3 {[%clk 0:02:57]}  h4 {[%clk 0:02:51]} 9. g4 {[%clk 0:02:58]}  f6 {[%clk 0:02:48]} 10. Be3 {[%clk 0:02:55]}  g5 {[%clk 0:02:44]} 11. d4 {[%clk 0:02:55]}  Ba7 {[%clk 0:02:43]} 12. Nd5 {[%clk 0:02:51]}  Ng6 {[%clk 0:02:42]} 13. c3 {[%clk 0:02:39]}  O-O {[%clk 0:02:42]} 14. Qd2 {[%clk 0:02:31]}  Nce7 {[%clk 0:02:34]} 15. Nxf6+ {[%clk 0:02:19]}  Rxf6 {[%clk 0:02:35]} 16. Bxg5 {[%clk 0:02:19]}  Qf8 {[%clk 0:02:04]} 17. Bxf6 {[%clk 0:02:07]}  Qxf6 {[%clk 0:02:05]} 18. f4 {[%clk 0:02:08]}  exf4 {[%clk 0:02:04]} 19. Nxf4 {[%clk 0:02:04]}  Nxf4 {[%clk 0:02:04]} 20. Rxf4 {[%clk 0:01:56]}  Qg7 {[%clk 0:02:04]} 21. Raf1 {[%clk 0:01:54]}  Be6 {[%clk 0:01:48]} 22. Kh1 {[%clk 0:01:24]}  Re8 {[%clk 0:01:27]} 23. b3 {[%clk 0:01:15]}  c5 {[%clk 0:00:49]} 24. Rf6 {[%clk 0:01:09]}  Nc8 {[%clk 0:00:12]} 25. e5 {[%clk 0:00:45]}  dxe5 {[%clk 0:00:08]} 26. d5 {[%clk 0:00:46]}  Bd7 {[%clk 0:00:07]} 27. Be4 {[%clk 0:00:46]}  Ne7 {[%clk 0:00:04]} 28. d6 {[%clk 0:00:46]}  Bc6 {[%clk 0:00:04]} 29. Bxc6 {[%clk 0:00:36]}  Nxc6 {[%clk 0:00:05]} 30. Qd5+ {[%clk 0:00:36]}  Kh8 {[%clk 0:00:06]} 31. R1f5 {[%clk 0:00:36]}  Qh7 {[%clk 0:00:03]} 32. Rf8+ {[%clk 0:00:19]}  Rxf8 {[%clk 0:00:02]} 33. Rxf8+ {[%clk 0:00:20]}  Kg7 {[%clk 0:00:03]} 34. Qf7+ {[%clk 0:00:17]}  Kh6 {[%clk 0:00:03]} 35. Qf6+ {[%clk 0:00:18]}  Qg6 {[%clk 0:00:04]} 36. Rh8# {[%clk 0:00:19]} 1-0


[Site "https://www.chess.com"]

[Event "Titled Tuesday Blitz April 4 Early 2023"]
[White "Belov, Alexei"]
[Black "Molina, Roberto Junio Brito"]
[WhiteFideId "4128206"]
[BlackFideId "2109450"]
[WhiteElo "2620"]
[BlackElo "2376"]
[Result "1-0"]
[Round "05"]
[TimeControl "180+2"]
[Date "2023.04.04"]
[WhiteClock "0:00:53"]
[BlackClock "0:00:11"]

1. e4 {[%clk 0:03:00]}  c6 {[%clk 0:02:59]} 2. d4 {[%clk 0:03:00]}  d5 {[%clk 0:03:00]} 3. Nd2 {[%clk 0:03:00]}  dxe4 {[%clk 0:02:59]} 4. Nxe4 {[%clk 0:03:00]}  Nd7 {[%clk 0:02:59]} 5. Nf3 {[%clk 0:03:00]}  Ngf6 {[%clk 0:02:58]} 6. Nxf6+ {[%clk 0:03:00]}  Nxf6 {[%clk 0:02:59]} 7. Ne5 {[%clk 0:03:00]}  Nd7 {[%clk 0:02:58]} 8. Bf4 {[%clk 0:03:00]}  Nxe5 {[%clk 0:02:57]} 9. Bxe5 {[%clk 0:03:00]}  Bf5 {[%clk 0:02:57]} 10. Bd3 {[%clk 0:02:42]}  Bxd3 {[%clk 0:02:52]} 11. Qxd3 {[%clk 0:02:42]}  e6 {[%clk 0:02:17]} 12. O-O {[%clk 0:02:32]}  f6 {[%clk 0:02:15]} 13. Bg3 {[%clk 0:02:28]}  Kf7 {[%clk 0:02:14]} 14. Rfe1 {[%clk 0:02:19]}  Qd7 {[%clk 0:02:14]} 15. Rad1 {[%clk 0:02:13]}  Bd6 {[%clk 0:02:10]} 16. Bxd6 {[%clk 0:02:04]}  Qxd6 {[%clk 0:02:10]} 17. Qb3 {[%clk 0:02:05]}  Qd7 {[%clk 0:02:10]} 18. c4 {[%clk 0:02:03]}  Rhe8 {[%clk 0:02:08]} 19. h3 {[%clk 0:01:58]}  Re7 {[%clk 0:02:07]} 20. d5 {[%clk 0:01:43]}  exd5 {[%clk 0:01:50]} 21. Rxe7+ {[%clk 0:01:39]}  Kxe7 {[%clk 0:01:46]} 22. cxd5 {[%clk 0:01:39]}  c5 {[%clk 0:01:42]} 23. Qe3+ {[%clk 0:01:22]}  Kf7 {[%clk 0:01:37]} 24. Qxc5 {[%clk 0:01:21]}  b6 {[%clk 0:01:35]} 25. Qa3 {[%clk 0:01:19]}  Rc8 {[%clk 0:01:32]} 26. d6 {[%clk 0:01:18]}  Rc5 {[%clk 0:01:31]} 27. Qd3 {[%clk 0:01:09]}  g6 {[%clk 0:01:28]} 28. Re1 {[%clk 0:01:07]}  Re5 {[%clk 0:01:24]} 29. Rc1 {[%clk 0:01:01]}  Qe6 {[%clk 0:00:11]} 30. d7 {[%clk 0:00:53]}  Kf8 {[%clk 0:00:11]} 31. d8=Q+ {[%clk 0:00:53]} 1-0


[Site "https://www.chess.com"]

[Event "Titled Tuesday Blitz April 4 Early 2023"]
[White "Atanasov, Anthony"]
[Black "Mammadov, Zaur"]
[WhiteFideId "2623897"]
[BlackFideId "13401033"]
[WhiteElo "2326"]
[BlackElo "2441"]
[Result "1-0"]
[Round "05"]
[TimeControl "180+2"]
[Date "2023.04.04"]
[WhiteClock "0:00:04"]
[BlackClock "0:00:09"]

1. d4 {[%clk 0:03:00]}  d5 {[%clk 0:02:59]} 2. Bf4 {[%clk 0:03:00]}  c5 {[%clk 0:02:58]} 3. e3 {[%clk 0:03:00]}  cxd4 {[%clk 0:02:58]} 4. exd4 {[%clk 0:03:01]}  Nc6 {[%clk 0:02:58]} 5. Nf3 {[%clk 0:03:01]}  Bf5 {[%clk 0:02:58]} 6. c3 {[%clk 0:03:01]}  e6 {[%clk 0:02:58]} 7. Bd3 {[%clk 0:03:02]}  Bxd3 {[%clk 0:02:56]} 8. Qxd3 {[%clk 0:03:02]}  Bd6 {[%clk 0:02:57]} 9. Bxd6 {[%clk 0:03:02]}  Qxd6 {[%clk 0:02:58]} 10. O-O {[%clk 0:03:03]}  Nf6 {[%clk 0:02:58]} 11. Re1 {[%clk 0:03:03]}  O-O {[%clk 0:02:59]} 12. Ne5 {[%clk 0:03:03]}  Rab8 {[%clk 0:02:59]} 13. a4 {[%clk 0:03:02]}  a6 {[%clk 0:02:59]} 14. Nd2 {[%clk 0:03:02]}  Ne7 {[%clk 0:02:59]} 15. a5 {[%clk 0:02:58]}  Nf5 {[%clk 0:02:53]} 16. h3 {[%clk 0:02:56]}  Rfc8 {[%clk 0:02:50]} 17. Qf3 {[%clk 0:02:45]}  Nd7 {[%clk 0:02:44]} 18. g4 {[%clk 0:02:43]}  Nh6 {[%clk 0:02:38]} 19. Nxd7 {[%clk 0:02:33]}  Qxd7 {[%clk 0:02:37]} 20. Qf4 {[%clk 0:02:34]}  Qc7 {[%clk 0:02:31]} 21. Qxc7 {[%clk 0:02:11]}  Rxc7 {[%clk 0:02:32]} 22. f4 {[%clk 0:02:11]}  Kf8 {[%clk 0:02:26]} 23. Re5 {[%clk 0:02:09]}  b6 {[%clk 0:02:22]} 24. f5 {[%clk 0:01:50]}  Rc6 {[%clk 0:02:05]} 25. Nf3 {[%clk 0:01:22]}  bxa5 {[%clk 0:02:03]} 26. Ra2 {[%clk 0:01:22]}  Ke7 {[%clk 0:01:54]} 27. fxe6 {[%clk 0:01:16]}  fxe6 {[%clk 0:01:51]} 28. Ne1 {[%clk 0:01:02]}  Nf7 {[%clk 0:01:50]} 29. Re2 {[%clk 0:01:00]}  Rb5 {[%clk 0:01:43]} 30. Nd3 {[%clk 0:00:59]}  Rcb6 {[%clk 0:01:26]} 31. Rf2 {[%clk 0:00:35]}  Ng5 {[%clk 0:01:25]} 32. Kg2 {[%clk 0:00:29]}  Ne4 {[%clk 0:01:25]} 33. Re2 {[%clk 0:00:26]}  g5 {[%clk 0:01:12]} 34. Nf2 {[%clk 0:00:18]}  Nxf2 {[%clk 0:01:09]} 35. Kxf2 {[%clk 0:00:19]}  h6 {[%clk 0:01:09]} 36. Kg2 {[%clk 0:00:17]}  Kd6 {[%clk 0:01:09]} 37. Rf2 {[%clk 0:00:17]}  Ke7 {[%clk 0:01:03]} 38. Re2 {[%clk 0:00:17]}  a4 {[%clk 0:01:03]} 39. Kg3 {[%clk 0:00:14]}  a3 {[%clk 0:00:48]} 40. Rxa3 {[%clk 0:00:10]}  Rxb2 {[%clk 0:00:48]} 41. Rxb2 {[%clk 0:00:11]}  Rxb2 {[%clk 0:00:48]} 42. Rxa6 {[%clk 0:00:12]}  Rc2 {[%clk 0:00:47]} 43. Rc6 {[%clk 0:00:12]}  Kf6 {[%clk 0:00:48]} 44. Rc8 {[%clk 0:00:09]}  Rd2 {[%clk 0:00:48]} 45. Rc7 {[%clk 0:00:08]}  Rd3+ {[%clk 0:00:49]} 46. Kg2 {[%clk 0:00:09]}  Re3 {[%clk 0:00:45]} 47. Rc6 {[%clk 0:00:08]}  Kg6 {[%clk 0:00:40]} 48. Kf2 {[%clk 0:00:06]}  Re4 {[%clk 0:00:39]} 49. Kf3 {[%clk 0:00:05]}  h5 {[%clk 0:00:39]} 50. Kg3 {[%clk 0:00:04]}  h4+ {[%clk 0:00:35]} 51. Kf3 {[%clk 0:00:04]}  Kf6 {[%clk 0:00:36]} 52. Rc7 {[%clk 0:00:04]}  Re1 {[%clk 0:00:35]} 53. Kg2 {[%clk 0:00:05]}  Re3 {[%clk 0:00:35]} 54. Rc8 {[%clk 0:00:05]}  Rg3+ {[%clk 0:00:34]} 55. Kh2 {[%clk 0:00:06]}  Rd3 {[%clk 0:00:34]} 56. Kg2 {[%clk 0:00:05]}  Ke7 {[%clk 0:00:27]} 57. Rc6 {[%clk 0:00:04]}  Kd7 {[%clk 0:00:26]} 58. Rc5 {[%clk 0:00:05]}  Kd6 {[%clk 0:00:22]} 59. Rc8 {[%clk 0:00:03]}  e5 {[%clk 0:00:22]} 60. dxe5+ {[%clk 0:00:02]}  Kxe5 {[%clk 0:00:22]} 61. Re8+ {[%clk 0:00:02]}  Kf4 {[%clk 0:00:21]} 62. Rf8+ {[%clk 0:00:02]}  Ke3 {[%clk 0:00:21]} 63. Rf5 {[%clk 0:00:02]}  Rd2+ {[%clk 0:00:19]} 64. Kg1 {[%clk 0:00:02]}  Ke4 {[%clk 0:00:19]} 65. Rxg5 {[%clk 0:00:02]}  Kf3 {[%clk 0:00:20]} 66. Re5 {[%clk 0:00:01]}  Rd3 {[%clk 0:00:18]} 67. Kh2 {[%clk 0:00:01]}  Rd2+ {[%clk 0:00:17]} 68. Kg1 {[%clk 0:00:02]}  Rd1+ {[%clk 0:00:16]} 69. Kh2 {[%clk 0:00:02]}  Rd3 {[%clk 0:00:17]} 70. g5 {[%clk 0:00:02]}  Rd2+ {[%clk 0:00:17]} 71. Kg1 {[%clk 0:00:02]}  Kf4 {[%clk 0:00:17]} 72. Re7 {[%clk 0:00:02]}  Kxg5 {[%clk 0:00:18]} 73. Rd7 {[%clk 0:00:02]}  Rd3 {[%clk 0:00:15]} 74. Rd6 {[%clk 0:00:01]}  Kf4 {[%clk 0:00:15]} 75. Kg2 {[%clk 0:00:02]}  Rd2+ {[%clk 0:00:15]} 76. Kg1 {[%clk 0:00:02]}  Kg3 {[%clk 0:00:16]} 77. Kf1 {[%clk 0:00:01]}  Kxh3 {[%clk 0:00:16]} 78. c4 {[%clk 0:00:02]}  Rd4 {[%clk 0:00:15]} 79. cxd5 {[%clk 0:00:01]}  Rf4+ {[%clk 0:00:14]} 80. Kg1 {[%clk 0:00:02]}  Rg4+ {[%clk 0:00:14]} 81. Kh1 {[%clk 0:00:02]}  Rd4 {[%clk 0:00:15]} 82. Kg1 {[%clk 0:00:02]}  Rd1+ {[%clk 0:00:16]} 83. Kf2 {[%clk 0:00:03]}  Kh2 {[%clk 0:00:17]} 84. Rh6 {[%clk 0:00:03]}  h3 {[%clk 0:00:17]} 85. d6 {[%clk 0:00:03]}  Rd2+ {[%clk 0:00:18]} 86. Kf3 {[%clk 0:00:03]}  Rd3+ {[%clk 0:00:17]} 87. Kf2 {[%clk 0:00:04]}  Rd5 {[%clk 0:00:17]} 88. Kf3 {[%clk 0:00:03]}  Rd4 {[%clk 0:00:16]} 89. Kf2 {[%clk 0:00:03]}  Rf4+ {[%clk 0:00:17]} 90. Ke3 {[%clk 0:00:04]}  Rf8 {[%clk 0:00:17]} 91. d7 {[%clk 0:00:03]}  Rd8 {[%clk 0:00:16]} 92. Rh7 {[%clk 0:00:03]}  Kg3 {[%clk 0:00:17]} 93. Rg7+ {[%clk 0:00:03]}  Kh4 {[%clk 0:00:17]} 94. Kf3 {[%clk 0:00:03]}  h2 {[%clk 0:00:16]} 95. Kg2 {[%clk 0:00:04]}  Kh5 {[%clk 0:00:15]} 96. Kxh2 {[%clk 0:00:02]}  Kh6 {[%clk 0:00:15]} 97. Re7 {[%clk 0:00:03]}  Kg6 {[%clk 0:00:16]} 98. Kg3 {[%clk 0:00:02]}  Rg8 {[%clk 0:00:16]} 99. Re8 {[%clk 0:00:02]}  Rg7 {[%clk 0:00:06]} 100. d8=Q {[%clk 0:00:03]}  Kh7+ {[%clk 0:00:07]} 101. Kf4 {[%clk 0:00:03]}  Rf7+ {[%clk 0:00:07]} 102. Ke5 {[%clk 0:00:03]}  Rg7 {[%clk 0:00:08]} 103. Rh8+ {[%clk 0:00:03]}  Kg6 {[%clk 0:00:09]} 104. Qf6# {[%clk 0:00:04]} 1-0


[Site "https://www.chess.com"]

[Event "Titled Tuesday Blitz April 4 Early 2023"]
[White "Pakleza, Zbigniew"]
[Black "Al-Tarboush, Ward"]
[WhiteFideId "1119290"]
[BlackFideId "7601450"]
[WhiteElo "2410"]
[BlackElo "2265"]
[Result "1-0"]
[Round "05"]
[TimeControl "180+2"]
[Date "2023.04.04"]
[WhiteClock "0:00:43"]
[BlackClock "0:00:09"]

1. d4 {[%clk 0:02:22]}  d5 {[%clk 0:02:57]} 2. Bf4 {[%clk 0:02:21]}  Nf6 {[%clk 0:02:57]} 3. e3 {[%clk 0:02:22]}  c5 {[%clk 0:02:57]} 4. c3 {[%clk 0:02:22]}  Nc6 {[%clk 0:02:56]} 5. Nd2 {[%clk 0:02:22]}  Qb6 {[%clk 0:02:57]} 6. Qb3 {[%clk 0:02:22]}  c4 {[%clk 0:02:55]} 7. Qxb6 {[%clk 0:02:23]}  axb6 {[%clk 0:02:56]} 8. a3 {[%clk 0:02:23]}  b5 {[%clk 0:02:53]} 9. Rc1 {[%clk 0:02:24]}  Bf5 {[%clk 0:02:53]} 10. h3 {[%clk 0:02:23]}  e6 {[%clk 0:02:52]} 11. g4 {[%clk 0:02:15]}  Bg6 {[%clk 0:02:52]} 12. Bg2 {[%clk 0:02:13]}  Nd7 {[%clk 0:02:47]} 13. e4 {[%clk 0:02:11]}  Nb6 {[%clk 0:02:46]} 14. Ne2 {[%clk 0:02:08]}  Be7 {[%clk 0:02:22]} 15. O-O {[%clk 0:02:07]}  O-O {[%clk 0:02:16]} 16. Rfe1 {[%clk 0:01:57]}  Bf6 {[%clk 0:02:15]} 17. Bg3 {[%clk 0:01:51]}  Na4 {[%clk 0:01:57]} 18. Rb1 {[%clk 0:01:52]}  e5 {[%clk 0:01:54]} 19. dxe5 {[%clk 0:01:46]}  Nxe5 {[%clk 0:01:27]} 20. Bxe5 {[%clk 0:01:46]}  Bxe5 {[%clk 0:01:26]} 21. f4 {[%clk 0:01:46]}  dxe4 {[%clk 0:01:11]} 22. f5 {[%clk 0:01:46]}  Nc5 {[%clk 0:00:32]} 23. Nxe4 {[%clk 0:01:39]}  Nxe4 {[%clk 0:00:18]} 24. Bxe4 {[%clk 0:01:39]}  Rad8 {[%clk 0:00:17]} 25. Rbd1 {[%clk 0:01:35]}  Bd6 {[%clk 0:00:17]} 26. Nd4 {[%clk 0:01:30]}  Bg3 {[%clk 0:00:09]} 27. Rf1 {[%clk 0:01:24]}  Rfe8 {[%clk 0:00:09]} 28. Bxb7 {[%clk 0:01:18]}  h5 {[%clk 0:00:10]} 29. fxg6 {[%clk 0:01:17]}  fxg6 {[%clk 0:00:11]} 30. Bf3 {[%clk 0:01:10]}  h4 {[%clk 0:00:10]} 31. Nxb5 {[%clk 0:01:07]}  Rb8 {[%clk 0:00:10]} 32. Bd5+ {[%clk 0:01:05]}  Kh7 {[%clk 0:00:10]} 33. Bxc4 {[%clk 0:01:06]}  Re5 {[%clk 0:00:10]} 34. a4 {[%clk 0:01:04]}  Re3 {[%clk 0:00:10]} 35. Rd3 {[%clk 0:00:48]}  Re2 {[%clk 0:00:09]} 36. Rxg3 {[%clk 0:00:48]}  Rxb2 {[%clk 0:00:09]} 37. Rg2 {[%clk 0:00:43]} 1-0


[Site "https://www.chess.com"]

[Event "Titled Tuesday Blitz April 4 Early 2023"]
[White "Zhao, Jun"]
[Black "Gabdrakhmanov, Azat"]
[WhiteFideId "8602522"]
[BlackFideId "34189197"]
[WhiteElo "2547"]
[BlackElo "2306"]
[Result "1-0"]
[Round "05"]
[TimeControl "180+2"]
[Date "2023.04.04"]
[WhiteClock "0:01:01"]
[BlackClock "0:00:04"]

1. Nf3 {[%clk 0:02:56]}  c5 {[%clk 0:02:58]} 2. g3 {[%clk 0:02:55]}  b6 {[%clk 0:02:56]} 3. Bg2 {[%clk 0:02:55]}  Bb7 {[%clk 0:02:57]} 4. O-O {[%clk 0:02:56]}  Nf6 {[%clk 0:02:57]} 5. c4 {[%clk 0:02:56]}  e6 {[%clk 0:02:57]} 6. Nc3 {[%clk 0:02:57]}  Be7 {[%clk 0:02:55]} 7. d4 {[%clk 0:02:56]}  cxd4 {[%clk 0:02:54]} 8. Qxd4 {[%clk 0:02:57]}  O-O {[%clk 0:02:53]} 9. Rd1 {[%clk 0:02:57]}  Na6 {[%clk 0:02:52]} 10. b3 {[%clk 0:02:56]}  Qc8 {[%clk 0:02:50]} 11. Bb2 {[%clk 0:02:55]}  Rd8 {[%clk 0:02:42]} 12. Rac1 {[%clk 0:02:54]}  d6 {[%clk 0:02:42]} 13. e4 {[%clk 0:02:41]}  Nc5 {[%clk 0:02:35]} 14. Re1 {[%clk 0:02:35]}  a6 {[%clk 0:02:22]} 15. Nd2 {[%clk 0:02:00]}  Qc7 {[%clk 0:02:03]} 16. h3 {[%clk 0:01:55]}  Rac8 {[%clk 0:01:58]} 17. Qe3 {[%clk 0:01:54]}  Bc6 {[%clk 0:01:39]} 18. b4 {[%clk 0:01:43]}  Ncd7 {[%clk 0:01:35]} 19. Nd5 {[%clk 0:01:42]}  Bxd5 {[%clk 0:01:17]} 20. cxd5 {[%clk 0:01:42]}  Qb8 {[%clk 0:01:16]} 21. dxe6 {[%clk 0:01:41]}  fxe6 {[%clk 0:01:17]} 22. Qb3 {[%clk 0:01:39]}  Nf8 {[%clk 0:01:07]} 23. e5 {[%clk 0:01:39]}  dxe5 {[%clk 0:00:58]} 24. Rxc8 {[%clk 0:01:36]}  Qxc8 {[%clk 0:00:57]} 25. Nc4 {[%clk 0:01:35]}  b5 {[%clk 0:00:39]} 26. Nxe5 {[%clk 0:01:34]}  Nd5 {[%clk 0:00:34]} 27. Rc1 {[%clk 0:01:29]}  Qb7 {[%clk 0:00:26]} 28. Nc6 {[%clk 0:01:29]}  Rd6 {[%clk 0:00:19]} 29. Nxe7+ {[%clk 0:01:24]}  Qxe7 {[%clk 0:00:17]} 30. Bd4 {[%clk 0:01:17]}  Rd7 {[%clk 0:00:14]} 31. Rc8 {[%clk 0:01:13]}  Rd8 {[%clk 0:00:11]} 32. Bc5 {[%clk 0:01:13]}  Qd7 {[%clk 0:00:10]} 33. Rxd8 {[%clk 0:01:10]}  Qxd8 {[%clk 0:00:09]} 34. a4 {[%clk 0:01:07]}  h6 {[%clk 0:00:08]} 35. a5 {[%clk 0:01:06]}  Ng6 {[%clk 0:00:05]} 36. Kh2 {[%clk 0:01:05]}  Ne5 {[%clk 0:00:05]} 37. f4 {[%clk 0:01:03]}  Nc4 {[%clk 0:00:04]} 38. Qd3 {[%clk 0:01:03]}  Qd7 {[%clk 0:00:04]} 39. f5 {[%clk 0:01:02]}  exf5 {[%clk 0:00:01]} 40. Qxd5+ {[%clk 0:01:01]}  Qxd5 {[%clk 0:00:02]} 41. Bxd5+ {[%clk 0:01:01]}  Kh7 {[%clk 0:00:03]} 42. Bxc4 {[%clk 0:01:01]}  bxc4 {[%clk 0:00:04]} 43. b5 {[%clk 0:01:01]} 1-0


[Site "https://www.chess.com"]

[Event "Titled Tuesday Blitz April 4 Early 2023"]
[White "Gokerkan, Cem Kaan"]
[Black "Ehlvest, Jaan"]
[WhiteFideId "6336760"]
[BlackFideId "4500016"]
[WhiteElo "2365"]
[BlackElo "2442"]
[Result "1-0"]
[Round "05"]
[TimeControl "180+2"]
[Date "2023.04.04"]
[WhiteClock "0:00:40"]
[BlackClock "0:00:02"]

1. e4 {[%clk 0:02:59]}  c5 {[%clk 0:02:53]} 2. c3 {[%clk 0:02:54]}  d5 {[%clk 0:02:52]} 3. exd5 {[%clk 0:02:54]}  Nf6 {[%clk 0:02:52]} 4. d4 {[%clk 0:02:53]}  Nxd5 {[%clk 0:02:51]} 5. dxc5 {[%clk 0:02:49]}  e6 {[%clk 0:02:46]} 6. Nf3 {[%clk 0:02:26]}  Bxc5 {[%clk 0:02:45]} 7. Bd3 {[%clk 0:02:27]}  Nd7 {[%clk 0:02:40]} 8. O-O {[%clk 0:02:27]}  Qc7 {[%clk 0:02:39]} 9. Nbd2 {[%clk 0:02:26]}  b6 {[%clk 0:02:35]} 10. Ne4 {[%clk 0:02:24]}  Be7 {[%clk 0:02:33]} 11. c4 {[%clk 0:02:17]}  Nf4 {[%clk 0:02:13]} 12. Bc2 {[%clk 0:01:56]}  Bb7 {[%clk 0:02:12]} 13. b3 {[%clk 0:01:55]}  O-O-O {[%clk 0:02:08]} 14. Qd2 {[%clk 0:01:34]}  g5 {[%clk 0:01:47]} 15. Qe3 {[%clk 0:01:27]}  Rhg8 {[%clk 0:01:20]} 16. a4 {[%clk 0:01:26]}  f5 {[%clk 0:01:08]} 17. Nc3 {[%clk 0:01:19]}  Bc5 {[%clk 0:00:59]} 18. Qe1 {[%clk 0:01:09]}  Nxg2 {[%clk 0:00:52]} 19. Kxg2 {[%clk 0:00:59]}  Ne5 {[%clk 0:00:51]} 20. Nb5 {[%clk 0:00:59]}  Bxf3+ {[%clk 0:00:36]} 21. Kg1 {[%clk 0:00:58]}  Bc6 {[%clk 0:00:31]} 22. Bd1 {[%clk 0:00:51]}  Rxd1 {[%clk 0:00:29]} 23. Qxd1 {[%clk 0:00:52]}  Nf3+ {[%clk 0:00:27]} 24. Qxf3 {[%clk 0:00:52]}  Bxf3 {[%clk 0:00:25]} 25. Nxc7 {[%clk 0:00:52]}  Kxc7 {[%clk 0:00:26]} 26. Be3 {[%clk 0:00:47]}  e5 {[%clk 0:00:18]} 27. a5 {[%clk 0:00:44]}  f4 {[%clk 0:00:07]} 28. axb6+ {[%clk 0:00:44]}  Bxb6 {[%clk 0:00:02]} 29. Bxb6+ {[%clk 0:00:43]}  Kxb6 {[%clk 0:00:02]} 30. Rfe1 {[%clk 0:00:44]}  e4 {[%clk 0:00:02]} 31. b4 {[%clk 0:00:42]}  Rd8 {[%clk 0:00:02]} 32. Ra5 {[%clk 0:00:40]} 1-0


[Site "https://www.chess.com"]